Cogmind - Beta 17.1 @@@ ROGUE MODE // 2026.08.30 @ 07:31:39 // Winter2019/RPGLIKE Player: Gallgagger Result: Destroyed self via exploding Nuclear Reactor Performance ------------- Evolutions (4) 2000 Regions Visited (7) 1400 Robots Destroyed (296) 1480 Value Destroyed (11656) 11656 Prototype IDs (21) 420 Alien Tech Used (0) 0 Bonus (18137) 18137 TOTAL SCORE: 35093 Bonus ------- Triggered High Security 1000 High Alert Combat Kills 7936 Follower Combat Kills 884 Prayed to X0-1V1 5000 Major X0-1V1 Interference 9400 Registered with UFD 300 Friendly Fire -6383 Cogmind --------- Core Integrity 0/700 Matter 212/300 Energy 1056/1400 System Corruption 14% Temperature Cool (26) Movement Flying (52) Location -6/Factory Parts ------- > --- POWER (1) -------- (None) > --- PROPULSION (4) --- High-density Centrium Leg High-density Centrium Leg Improved VTOL Module Improved VTOL Module > --- UTILITY (9) ------ Seismic Detector Core Analyzer Wyrmscale Plateshifter X0-1V1's Piety Tracker > --- WEAPON (1) ------- Companion Sword (fused) > --- INVENTORY (5) ---- Protomatter-24 Mobile Assembly Unit Peak State ------------ > --- POWER ------------ (None) > --- PROPULSION ------- High-density Centrium Leg High-density Centrium Leg High-density Centrium Leg High-density Centrium Leg > --- UTILITY ---------- Seismic Detector Core Analyzer Wyrmscale Wyrmscale Wyrmscale Wyrmscale Plateshifter X0-1V1's Piety Tracker > --- WEAPON ----------- Companion Sword > --- INVENTORY -------- Mobile Assembly Unit [Rating: 135] Favorites ----------- Power Improved Ion Engine Engine Improved Ion Engine Power Core Light Nuclear Core Propulsion Improved VTOL Module Treads Light Treads Leg High-density Centrium Leg Wheel Wheel Flight Unit Improved VTOL Module Utility Seismic Detector Device Seismic Detector Processor Core Analyzer Protection Hardened Heavy Armor Plating Weapon Makeshift Axe Energy Gun Advanced Beam Rifle Ballistic Gun Light Assault Rifle Special Weapon CPS Tube Impact Weapon Makeshift Hammer Slashing Weapon Makeshift Axe Build | -11 -10 -9 -8 -8 -8 -8 -6 ------- Run | Yrd Mat Mat Mat Sto Rec Scr Fac Slots Evolved 11 | 4 3 1 2 1 . . . Power . | . . . . . . . . Propulsion 3 | 2 1 . . . . . . Utility 8 | 2 2 1 2 1 . . . Weapon . | . . . . . . . . Parts Attached 66 | 7 10 12 11 9 2 4 11 Power 8 | 1 1 1 3 2 . . . Engine 7 | 1 . 1 3 2 . . . Core 1 | . 1 . . . . . . Reactor . | . . . . . . . . Propulsion 19 | 3 4 2 3 3 . . 4 Treads 2 | 2 . . . . . . . Leg 5 | . 1 . . . . . 4 Wheel 1 | 1 . . . . . . . Hover . | . . . . . . . . Flight 11 | . 3 2 3 3 . . . Utility 30 | 2 3 6 4 4 2 2 7 Device 13 | 2 2 2 3 . . 1 3 Storage . | . . . . . . . . Processor 2 | . . . 1 . . 1 . Hackware . | . . . . . . . . Protection 15 | . 1 4 . 4 2 . 4 Artifact . | . . . . . . . . Weapon 9 | 1 2 3 1 . . 2 . Energy Gun 1 | . . 1 . . . . . Energy Cannon . | . . . . . . . . Ballistic Gun 2 | 1 . 1 . . . . . Ballistic Cannon . | . . . . . . . . Launcher . | . . . . . . . . Special Weapon 1 | . . . . . . 1 . Impact Weapon 3 | . 2 1 . . . . . Slashing Weapon 2 | . . . 1 . . 1 . Piercing Weapon . | . . . . . . . . Special Melee Weapon . | . . . . . . . . Unidentified Prototypes 14 | . 1 2 4 1 . 1 5 Corrupted Parts 2 | . . . . . . . 2 System Corruption 13 | . . . . . . . 13 Parts Lost 3 | . . . 1 2 . . . Power . | . . . . . . . . Propulsion . | . . . . . . . . Utility 3 | . . . 1 2 . . . Weapon . | . . . . . . . . Highest Loss Streak 1 | . . . 1 1 . . . To Critical Strikes . | . . . . . . . . Average Backups . | . . . . 1 1 1 1 Power . | . . . . . . . . Propulsion . | . . . . . . . . Utility . | . . . . 1 1 . . Weapon . | . . . . . . . . Tool/Special . | . . . . . . . . Unused Backups 14 | . . 1 2 6 4 . 1 Power . | . . . . . . . . Propulsion . | . . . . . . . . Utility 6 | . . . 2 2 2 . . Weapon 7 | . . 1 . 4 2 . . Tool/Special 1 | . . . . . . . 1 Average Slot Usage (%) 86 | . 83 86 87 90 99 78 72 Engine 5 | . 7 3 6 6 6 4 . Leg 1 | . 2 . . . . . 14 Flight 24 | . 15 33 27 27 26 26 10 Device 30 | . 19 27 35 34 33 30 21 Processor 5 | . 5 1 1 6 6 8 7 Protection 8 | . 8 11 7 7 19 1 9 Impact Weapon 2 | . 10 8 2 . . . . Slashing Weapon 4 | . . . 4 6 6 5 5 Peak Build Rating 135 | 7 26 40 56 57 56 59 135 Average Rating 48 | 4 17 35 50 54 49 51 92 On Entrance 36 | . 7 25 39 56 47 56 59 Avg Prop Armor Cover (%) 24 | 31 31 . . . . . 16 Naked Turns . | . . . . . . . . Heaviest Build 79 | 6 14 36 41 39 42 46 79 Greatest Support 148 | 25 27 38 50 41 40 49 148 Greatest Overweight (x) 1 | . 1 . . . 1 . 1 Average Overweight (x) . | . . . . . . . . Largest Inventory Capacity 5 | 1 2 2 4 4 4 4 5 Average Capacity 3 | 1 1 2 2 4 4 4 4 Most Carried 5 | . 2 2 4 4 4 4 5 Average Carried 2 | . 1 1 2 3 3 3 3 Final Capacity 5 | 1 2 2 4 4 4 4 5 Final Carried 5 | . 2 2 4 4 4 4 5 Class Distribution -------------------- 57% | Sprinter 20% | Commander-Sprinter 11% | Scavenger-Mutant 7% | Mutant Dominant Class ---------------- Mutant | -10/Materials Sprinter | -9/Materials Sprinter | -8/Materials Sprinter | -8/Storage Commander-Sprinter | -8/Recycling Commander-Sprinter | -8/Scraptown Scavenger-Mutant | -6/Factory Resources | -11 -10 -9 -8 -8 -8 -8 -6 ----------- Run | Yrd Mat Mat Mat Sto Rec Scr Fac Matter Collected 2401 | 295 426 388 285 825 18 42 122 Remotely 85 | 45 40 . . . . . . Salvage Created 10932 | 108 837 1850 3284 3791 159 711 192 Parts 515 | 6 32 63 109 201 23 29 52 Haulers Intercepted 3 | . 1 . 1 1 . . . Recyclers Shooed 3 | . 1 . 1 . . . 1 Parts Field Recycled . | . . . . . . . . Retrieved Matter . | . . . . . . . . Parts Self-Destructed . | . . . . . . . . Prevented . | . . . . . . . . Parts Restored . | . . . . . . . . Kills | -11 -10 -9 -8 -8 -8 -8 -6 ------- Run | Yrd Mat Mat Mat Sto Rec Scr Fac Combat Hostiles Destroyed 279 | . 31 58 76 92 8 9 5 Melee 228 | . 21 35 60 92 8 9 3 Cannons 1 | . . . . . . . 1 AOE 1 | . . . . . . . 1 Classes Destroyed 20 | 2 4 1 6 1 2 2 2 Builder 3 | . 2 . 1 . . . . Tunneler 1 | 1 . . . . . . . Hauler 3 | . 1 . 1 1 . . . Recycler 5 | 1 2 . 1 . . . 1 Mechanic 1 | . . . . 1 . . . Operator 1 | . . . 1 . . . . Watcher 3 | . . . 2 1 . . . Swarmer 33 | . 8 12 7 6 . . . Grunt 162 | . 23 36 46 56 . . 1 Brawler 7 | . . . 5 2 . . . Duelist 7 | . . . 2 5 . . . Protector 9 | . . . 1 7 1 . . Sentry 43 | . . 10 13 16 4 . . Demolisher 1 | . . . . . 1 . . Specialist 1 | . . . . . . . 1 Hunter 5 | . . . 2 . 1 . 2 Programmer 2 | . . . . . 1 . 1 Scrapper 5 | . . . . . . 5 . Elite 4 | . . . . . . 4 . Dragon 1 | . . . . . . . 1 Best Kill Streak 17 | 1 11 17 15 11 2 3 2 Combat Bots Only 17 | . 11 17 15 11 2 3 2 Max Kills in Single Turn 2 | 1 1 1 1 1 1 1 2 Gunslinging . | . . . . . . . . Exploded 1 | . . . . . . . 1 Melee 1 | . 1 1 1 1 1 1 1 Uniques/NPCs Destroyed 1 | . . . . . . 1 . Triborg (-8/Scraptown) Combat | -11 -10 -9 -8 -8 -8 -8 -6 -------- Run | Yrd Mat Mat Mat Sto Rec Scr Fac Hostile Shots Fired 1169 | . 120 167 239 344 12 86 201 Missed 433 | . 43 68 81 134 7 26 74 Hits 736 | . 77 99 158 210 5 60 127 Melee 35 | . . . 14 21 . . . Projectile 701 | . 77 99 144 189 5 60 127 AOE 1 | . . . . 1 . . . Critical Strikes 35 | . 1 . 9 14 . 8 3 Damage Taken 10084 | . 820 1042 1812 2747 57 1369 2237 Core 6194 | . 644 575 992 1514 22 1112 1335 Absorbed by Shields 1725 | . . 93 685 912 22 13 . Redirected to Core 4800 | . 389 420 834 1224 22 917 994 Redirected to Shielding 69 | . 54 4 . 11 . . . Regen/Repaired (Parts) 902 | . . . . . . . 902 Core Remaining (%) 90 | 100 100 82 . . . 81 . Volleys Fired 27 | 25 . . . . . 1 1 Largest 1 | 1 . . . . . 1 1 Hottest 20 | 20 . . . . . . . Shots Fired 27 | 25 . . . . . 1 1 Gun 25 | 25 . . . . . . . Cannon . | . . . . . . . . Launcher . | . . . . . . . . Special 2 | . . . . . . 1 1 Kinetic 25 | 25 . . . . . . . Thermal . | . . . . . . . . Explosive . | . . . . . . . . Electromagnetic . | . . . . . . . . Robot Hit Streak 5 | 5 . . . . . 3 4 Robot Miss Streak 4 | 4 . . . . . . . Penetration Max . | . . . . . . . . Secondary Targets . | . . . . . . . . Shots Hit Robots 763 | 15 76 120 212 248 14 30 48 Core Hits 256 | 4 16 24 64 113 7 10 18 Critical Kills 12 | . 3 6 3 . . . . Critical Parts Destroyed 32 | . 12 12 8 . . . . Critical Strikes 89 | . 15 19 25 29 1 . . Smash 45 | . 15 19 11 . . . . Sever 44 | . . . 14 29 1 . . Melee Attacks 889 | . 93 142 248 301 15 31 59 Impact 340 | . 93 142 105 . . . . Slashing 549 | . . . 143 301 15 31 59 Piercing . | . . . . . . . . Sneak Attacks 60 | . 5 11 3 6 7 . 28 Combat Hostiles 9 | . . 5 . 3 . . 1 Follow-up Attacks 3 | . . . . . . 2 1 Damage Inflicted 33302 | 117 3264 6323 8989 9513 856 1206 3034 Guns 117 | 117 . . . . . . . Cannons 153 | . . . . . . . 153 Explosions 30 | . . . . . . . 30 Melee 33002 | . 3264 6323 8989 9513 856 1206 2851 Ramming . | . . . . . . . . Kinetic 117 | 117 . . . . . . . Thermal 183 | . . . . . . . 183 Explosive . | . . . . . . . . Electromagnetic . | . . . . . . . . Impact 13852 | . 3264 6323 4265 . . . . Slashing 19150 | . . . 4724 9513 856 1206 2851 Piercing . | . . . . . . . . Highest Corruption 15 | . 15 4 . 1 . . 14 Average Corruption 5 | . 14 3 . 1 . . 8 Corruption Purged . | . . . . . . . . Corruption Blocked . | . . . . . . . . Effects 22 | . 6 6 . 2 . . 8 Message Errors 5 | . 3 . . . . . 2 Matter Fused 3 | . . 2 . . . . 1 Heat Flow Errors 3 | . 1 1 . 1 . . . Energy Discharges 4 | . . 1 . 1 . . 2 Parts Rejected 1 | . . 1 . . . . . Parts Fused 1 | . . 1 . . . . . Data Loss (minor) 5 | . 2 . . . . . 3 Overload Shots . | . . . . . . . . Overflow Damage 4141 | . 778 1725 1210 316 72 . 40 Projectiles 4 | . 4 . . . . . . Explosions . | . . . . . . . . Melee 4137 | . 774 1725 1210 316 72 . 40 Knockbacks 52 | . 24 13 15 . . . . Impact 44 | . 18 11 15 . . . . Kinetic . | . . . . . . . . Secondary 8 | . 6 2 . . . . . Self-Inflicted Damage 177 | . . . . . . . 177 Shots 2 | . . . . . . . 2 Rammed . | . . . . . . . . Targets Rammed . | . . . . . . . . Kicked . | . . . . . . . . Crushed . | . . . . . . . . Highest Temperature 271 | . 271 133 244 115 . . . Average Temperature 92 | . 125 26 119 74 . . . Received Heat Transfer 2971 | . 366 376 680 1082 12 299 156 Effects 2 | . 2 . . . . . . Energy Bleed 1 | . 1 . . . . . . Interference 1 | . 1 . . . . . . Siege Activations . | . . . . . . . . Martial Activations . | . . . . . . . . Shielding Activations . | . . . . . . . . Robots Disrupted . | . . . . . . . . Combat Hostiles . | . . . . . . . . Robots Corrupted 54 | . 12 23 19 . . . . Combat Hostiles 50 | . 10 23 17 . . . . Parts Fried 67 | . 21 27 19 . . . . Impact Corruptions 133 | . 34 61 38 . . . . Robots Melted . | . . . . . . . . Combat Hostiles . | . . . . . . . . Parts Melted 8 | . . 3 . . 1 4 . Heat Transferred 130 | . . . . . . . 130 Parts Sabotaged . | . . . . . . . . Parts Stolen . | . . . . . . . . Parts Stripped . | . . . . . . . . Power Chain Reactions . | . . . . . . . . Alert | -11 -10 -9 -8 -8 -8 -8 -6 ------- Run | Yrd Mat Mat Mat Sto Rec Scr Fac Maximum Alert Level 5 | . 2 5 5 5 5 . . Low Security (%) 18 | 100 54 . . . . . 100 Level 1 5 | . 22 18 . . . . . Level 2 5 | . 22 18 . . . . . Level 3 7 | . . 18 20 . . . . Level 4 23 | . . 35 26 11 76 . . Level 5 19 | . . 8 11 50 23 . . High Security 19 | . . . 41 37 . . . Max Security . | . . . . . . . . Sterilizations 4 | . 1 1 1 1 . . . Peak Influence 3913 | 5 663 1760 3165 3913 1644 . 99 Initial 1525 | . . 276 741 1337 1525 . . Average 1445 | 1 222 949 1750 2609 1581 . 26 Influence Increases 9146 | 10 927 1840 2820 2982 289 . 278 Destroy 0b10 Robot/C 5340 | . 620 1160 1580 1720 160 . 100 Destroy 0b10 Robot/NC 135 | 10 25 . 40 50 5 . 5 Destroy Leader 1044 | . 112 290 298 304 . . 40 Allied During Kill 59 | . . . 14 11 34 . . Select Force Hacks 740 | . 110 270 140 130 90 . . Disable Machine 60 | . . . . 30 . . 30 Destroy Structure 15 | . . . . 2 . . 13 Partial Spotted 120 | . 15 30 30 30 . . 15 Lose Combat Pursuer 1275 | . 45 90 360 705 . . 75 Miscellaneous 358 | . . . 358 . . . . Influence Decreases 9000 | 10 272 741 1409 2234 2690 1512 132 Entered New Map 7120 | . . 379 1013 1828 2388 1512 . Time Decay 1790 | 10 272 362 326 386 302 . 132 Lost Part 30 | . . . 10 20 . . . Lost Ally 60 | . . . 60 . . . . Squads Dispatched 70 | . 9 17 17 22 . . 5 Investigation 37 | . 9 15 7 6 . . . Extermination 1 | . . . . . . . 1 Reinforcement 9 | . . 1 1 3 . . 4 Assault 23 | . . 1 9 13 . . . Garrison . | . . . . . . . . Intercept . | . . . . . . . . Searches Triggered . | . . . . . . . . Construction Impeded . | . . . . . . . . Haulers Reinforced . | . . . . . . . . Active Scanning Responses . | . . . . . . . . Cargo Convoy Interrupts . | . . . . . . . . Stealth | -11 -10 -9 -8 -8 -8 -8 -6 --------- Run | Yrd Mat Mat Mat Sto Rec Scr Fac Distress Signals 18 | . 5 . 6 4 . 2 1 Communications Jammed . | . . . . . . . . Distress Signals . | . . . . . . . . Times Spotted 497 | . 46 60 132 199 8 27 25 Peak Tracking Total 23 | . 12 8 16 23 3 23 7 Tactical Retreats 37 | . 3 5 14 13 . . 2 Traps | -11 -10 -9 -8 -8 -8 -8 -6 ------- Run | Yrd Mat Mat Mat Sto Rec Scr Fac Traps Triggered 6 | . 1 3 . 2 . . . Indirectly . | . . . . . . . . Trap Hack Attempts . | . . . . . . . . Triggered . | . . . . . . . . Disarmed . | . . . . . . . . Reprogrammed . | . . . . . . . . Reused . | . . . . . . . . Traps Extracted . | . . . . . . . . Installed . | . . . . . . . . Triggered . | . . . . . . . . Machines | -11 -10 -9 -8 -8 -8 -8 -6 ---------- Run | Yrd Mat Mat Mat Sto Rec Scr Fac Machines Disabled 9 | . . . . 3 . 4 2 Max in Single Turn 1 | . . . . 1 . . 1 Garrison Access 1 | . . . . 1 . . . Machines Repaired . | . . . . . . . . Machines Dismantled . | . . . . . . . . Machines Sabotaged 7 | . 1 3 1 2 . . . Overloaded Fab Kills . | . . . . . . . . Hacking | -11 -10 -9 -8 -8 -8 -8 -6 --------- Run | Yrd Mat Mat Mat Sto Rec Scr Fac Machines Accessed 42 | . 9 14 7 8 3 1 . Terminals 23 | . 7 8 3 5 . . . Fabricators . | . . . . . . . . Repair Stations 5 | . . 2 1 2 . . . Recycling Units 9 | . 2 2 1 1 3 . . Scanalyzers 4 | . . 2 2 . . . . Garrison Access . | . . . . . . . . Total Hacks 66 | . 18 17 12 15 3 1 . Successful 41 | . 9 14 7 7 3 1 . Failed 25 | . 9 3 5 8 . . . Catastrophic 2 | . 2 . . . . . . Database Lockouts . | . . . . . . . . Manual 67 | . 19 18 12 15 3 . . Terminals 42 | . 15 11 7 9 . . . Fabricators . | . . . . . . . . Repair Stations 8 | . . 2 1 5 . . . Recycling Units 11 | . 3 2 2 1 3 . . Scanalyzers 4 | . . 2 2 . . . . Garrison Access . | . . . . . . . . Terminal Hacks 3 | . 1 . . 1 . 1 . Robot Analysis 1 | . 1 . . . . . . Open Door 2 | . . . . 1 . 1 . Fabricator Hacks . | . . . . . . . . Repair Station Hacks . | . . . . . . . . Recycling Unit Hacks . | . . . . . . . . Scanalyzer . | . . . . . . . . Garrison Access Hacks . | . . . . . . . . Unauthorized Hacks 38 | . 8 14 7 6 3 . . Terminals 21 | . 6 8 3 4 . . . Sabotage 20 | . 6 7 3 4 . . . Search 1 | . . 1 . . . . . Fabricators . | . . . . . . . . Repair Stations 4 | . . 2 1 1 . . . Patch 4 | . . 2 1 1 . . . Recycling Units 9 | . 2 2 1 1 3 . . Tunnel 9 | . 2 2 1 1 3 . . Scanalyzers 4 | . . 2 2 . . . . Extract 4 | . . 2 2 . . . . Garrison Access . | . . . . . . . . Data Cores Recovered . | . . . . . . . . Used . | . . . . . . . . Hacking Detections 11 | . 5 2 1 3 . . . Full Trace Events 1 | . . . . 1 . . . Feedback Events . | . . . . . . . . Feedback Blocked . | . . . . . . . . Robot Schematics Acquired . | . . . . . . . . Robots Built . | . . . . . . . . Authchips . | . . . . . . . . Time . | . . . . . . . . Total Robot Build Rating . | . . . . . . . . Part Schematics Acquired 22 | . . 14 8 . . . . Parts Built . | . . . . . . . . Authchips . | . . . . . . . . Time . | . . . . . . . . Total Part Build Rating . | . . . . . . . . Part Studies Acquired . | . . . . . . . . Parts Repaired . | . . . . . . . . Time . | . . . . . . . . Parts Recycled . | . . . . . . . . Recycled Matter . | . . . . . . . . Retrieved Matter . | . . . . . . . . Retrieved Components . | . . . . . . . . Parts Scanalyzed . | . . . . . . . . Part Schematics Acquired . | . . . . . . . . Parts Damaged . | . . . . . . . . Bothacking | -11 -10 -9 -8 -8 -8 -8 -6 ------------ Run | Yrd Mat Mat Mat Sto Rec Scr Fac Used RIF Installer . | . . . . . . . . Robots Hacked . | . . . . . . . . Non-combat . | . . . . . . . . Combat . | . . . . . . . . Robot Hacks Applied . | . . . . . . . . Relay Couplers Released 1 | . . . . 1 . . . Machine Destruction 1 | . . . . 1 . . . Fabnet Peak Effective % . | . . . . . . . . Robots Rewired 17 | . . . . . 17 . . Allies Hacked . | . . . . . . . . Hacks Repelled . | . . . . . . . . Allies | -11 -10 -9 -8 -8 -8 -8 -6 -------- Run | Yrd Mat Mat Mat Sto Rec Scr Fac Total Allies 30 | . . . 3 9 17 1 . Largest Group 25 | . . . 3 8 25 25 1 Highest-Rated Group 823 | . . . 51 138 450 823 464 Highest-Rated Ally 464 | . . . 18 29 34 464 464 Total Orders 24 | . . . . . 3 21 . STAY 16 | . . . . . 2 14 . ROAM 3 | . . . . . . 3 . FOLLOW 3 | . . . . . 1 2 . GUARD 2 | . . . . . . 2 . Ally Attacks 148 | . . . 12 24 6 106 . Total Damage 4831 | . . . 316 227 80 4208 . Kills 40 | . . . 4 2 1 33 . Allies Corrupted . | . . . . . . . . Allies Melted . | . . . . . . . . X0-1V1 Amusement Gains 294 | . 9 105 38 55 . . 87 Average Entertainment 56 | . 6 23 91 82 37 23 13 Good Acts 88 | . 15 12 14 19 16 3 9 Bad Acts 57 | . 13 2 11 19 2 . 10 Intel | -11 -10 -9 -8 -8 -8 -8 -6 ------- Run | Yrd Mat Mat Mat Sto Rec Scr Fac Active Infowar (turns) 6329 | 6 673 829 1250 1458 673 871 569 Optics 35 | . 35 . . . . . . Structural 4756 | . . 817 1250 1458 673 558 . Seismic 6329 | 6 673 829 1250 1458 673 871 569 Robot Analysis Total 1 | . 1 . . . . . . Derelict Logs Recovered . | . . . . . . . . Drone Launches . | . . . . . . . . Drone Recoveries . | . . . . . . . . Exploration | -11 -10 -9 -8 -8 -8 -8 -6 ------------- Run | Yrd Mat Mat Mat Sto Rec Scr Fac Turns Passed 6410 | 87 673 829 1250 1458 673 871 569 Spaces Moved 8506 | 58 729 1206 1845 1603 919 1714 432 Core 412 | 53 272 . . . . . 87 Treads 1 | 1 . . . . . . . Legs 78 | . 1 . . . . . 77 Wheels 4 | 4 . . . . . . . Hover . | . . . . . . . . Flight 8011 | . 456 1206 1845 1603 919 1714 268 Fastest Speed 27 | 50 34 29 27 27 28 28 28 Average Speed 31 | 53 41 29 27 27 28 28 61 Slowest Speed 160 | 160 120 34 29 30 103 28 120 Overloaded Moves . | . . . . . . . . Propulsion Burnouts . | . . . . . . . . Robots Hopped 64 | . 8 . 26 9 1 12 8 Potential Cave-ins 1 | . . . . 1 . . . Cave-ins Triggered . | . . . . . . . . Exploration Rate (%) 69 | 4 87 92 91 94 99 80 9 Regions Visited 7 Branch Regions 3 Pre-discovered Areas 9 | . 2 2 1 1 3 . . Known Exits Taken 3 | . . 1 . . 1 1 . Unknown Exits Taken 4 | 1 1 . 1 1 . . . Scrap Searched 4 | . . . . . . 4 . Spaces Dug 6 | . . . . 1 . . 5 Terrain Destroyed 13 | . . . . 1 . . 12 Melee 6 | . . . . 1 . . 5 Projectile . | . . . . . . . . AOE 7 | . . . . . . . 7 Terrain Rammed . | . . . . . . . . Walls Destroyed . | . . . . . . . . Machines Disabled . | . . . . . . . . Actions | -11 -10 -9 -8 -8 -8 -8 -6 --------- Run | Yrd Mat Mat Mat Sto Rec Scr Fac Total 11182 | 89 922 1530 2316 2305 1321 2051 648 Wait 1075 | . 47 101 116 304 162 250 95 Move 8376 | 57 712 1205 1793 1584 916 1692 417 Hop 59 | . 8 . 25 9 1 9 7 Pick Up 37 | . 3 5 8 5 6 5 5 Fast Attach 44 | 7 6 9 5 9 . 3 5 Attach 6 | . . . . . 2 1 3 Detach 4 | . . 1 . . . 1 2 Swap 41 | . 6 9 9 4 . 2 11 Drop 67 | . 7 12 13 7 8 8 12 Fire 27 | 25 . . . . . 1 1 Melee 886 | . 93 142 248 301 15 29 58 Ram . | . . . . . . . . Kick . | . . . . . . . . Crush . | . . . . . . . . Escape Stasis . | . . . . . . . . Rewire 183 | . . . . . 183 . . Trap . | . . . . . . . . Miscellaneous 377 | . 40 46 99 82 28 50 32 Route ------- -11/Scrapyard -10/Materials (discovered 4 exits: *Mat x2 / [*Min] / Sub) -9/Materials (discovered 4 exits: *Mat x3 / [*Min]) -8/Materials (discovered 4 exits: *Fac x3 / *Sto) -8/Storage (discovered 2 exits: *Fac / *Rec) -8/Recycling (discovered 2 exits: *Fac / *Scr) -8/Scraptown (discovered 2 exits: *Fac x2) -6/Factory History --------- Turn | Location | Event 1 | -11/Scrapyard | Upgraded with Propulsion slot (x2) 1 | -11/Scrapyard | Upgraded with Utility slot (x2) 3 | -11/Scrapyard | Discovered new exit (range 15) 88 | -11/Scrapyard | Entered Materials 152 | -10/Materials | Discovered new exit (range 8) 322 | -10/Materials | Build established: Mutant 359 | -10/Materials | Prayed at D.C.S.S. Altar Unit 359 | -10/Materials | Reached level 2 359 | -10/Materials | Reached level 3 361 | -10/Materials | Upgraded with Utility slot (x1) 369 | -10/Materials | Discovered new exit (range 16) 426 | -10/Materials | X0-1V1 activates XOMVISION 483 | -10/Materials | Weapon slot count temporarily expanded by X0-1V1 (+1) 493 | -10/Materials | Core integrity fell below 50% 515 | -10/Materials | Destroyed 9 combat bots 523 | -10/Materials | Reached level 4 622 | -10/Materials | Discovered new exit (range 13) 622 | -10/Materials | X0-1V1 sent you into danger 624 | -10/Materials | X0-1V1 made a cryptic comment about sterilization and BL-4Z3 625 | -10/Materials | X0-1V1 activates XOMVISION 631 | -10/Materials | Identified exit to Subcaves 631 | -10/Materials | X0-1V1 revealed exit location to -10/Subcaves 635 | -10/Materials | X0-1V1 announced a LAN party 635 | -10/Materials | Reached level 5 637 | -10/Materials | System corruption reached 10% 637 | -10/Materials | X0-1V1 sent hostile S-10 Pest (x5) 709 | -10/Materials | Sterilization system engaged 709 | -10/Materials | Non-combat units ordered to evacuate 729 | -10/Materials | Weapon slot count reverted to normal (-1) 729 | -10/Materials | Destroyed 11 combat bots 743 | -10/Materials | Reached level 6 745 | -10/Materials | Upgraded with Propulsion slot (x1) 745 | -10/Materials | Upgraded with Utility slot (x1) 753 | -10/Materials | X0-1V1 put everyone to sleep 761 | -10/Materials | Entered another Materials area 763 | -9/Materials | Reached level 7 796 | -9/Materials | Identified exit to Materials 796 | -9/Materials | X0-1V1 revealed exit location to -8/Materials 808 | -9/Materials | X0-1V1 put everyone to sleep 810 | -9/Materials | X0-1V1 foreshadows a heat wave 873 | -9/Materials | Ambient heat levels rising (+10) 885 | -9/Materials | X0-1V1 sent you to a vault 902 | -9/Materials | Discovered new exit (range 12) 964 | -9/Materials | Ambient heat levels rising (+10) 965 | -9/Materials | Reached level 8 1046 | -9/Materials | Ambient heat levels falling (-10) 1050 | -9/Materials | Destroyed 9 combat bots 1056 | -9/Materials | Upgraded with Utility slot (x1) 1103 | -9/Materials | X0-1V1 woke everyone up 1106 | -9/Materials | Ambient heat levels falling (-10) 1119 | -9/Materials | Reached level 9 1141 | -9/Materials | X0-1V1 sent hostile S-10 Pest (x5) 1161 | -9/Materials | First assault squad dispatched 1188 | -9/Materials | Build established: Sprinter 1269 | -9/Materials | Discovered exit to Materials (range 11) 1301 | -9/Materials | Destroyed 17 combat bots 1362 | -9/Materials | X0-1V1 revealed exit location to -8/Materials 1429 | -9/Materials | Reached level 10 1464 | -9/Materials | Destroyed 7 combat bots 1510 | -9/Materials | Sterilization system engaged 1510 | -9/Materials | Non-combat units ordered to evacuate 1590 | -9/Materials | Entered another Materials area 1592 | -8/Materials | Reached level 11 1592 | -8/Materials | Discovered new exit (range 15) 1595 | -8/Materials | Destroyed 8 combat bots 1727 | -8/Materials | Reached level 12 1741 | -8/Materials | Upgraded with Utility slot (x2) 1756 | -8/Materials | Destroyed 7 combat bots 1821 | -8/Materials | Weapon slot count temporarily expanded by X0-1V1 (+4) 1904 | -8/Materials | Destroyed 7 combat bots 1990 | -8/Materials | First assault squad dispatched 2004 | -8/Materials | Weapon slot count reverted to normal (-4) 2037 | -8/Materials | Reached level 13 2051 | -8/Materials | Sensors blinded by X0-1V1 2082 | -8/Materials | X0-1V1 sent you to a vault 2133 | -8/Materials | X0-1V1 sent hostile B-36 Bruiser (x2) 2141 | -8/Materials | Weapon slot count temporarily expanded by X0-1V1 (+1) 2267 | -8/Materials | Weapon slot count reverted to normal (-1) 2286 | -8/Materials | Discovered new exit (range 15) 2317 | -8/Materials | High security lockdown imminent 2397 | -8/Materials | High security lockdown engaged 2444 | -8/Materials | Discovered new exit (range 15) 2484 | -8/Materials | X0-1V1 added 0b10 threat records associated with you (considerable) 2545 | -8/Materials | Sterilization system engaged 2545 | -8/Materials | Non-combat units ordered to evacuate 2551 | -8/Materials | X0-1V1 sent allied L-31 Rogue (x3) 2563 | -8/Materials | Reached level 14 2595 | -8/Materials | Destroyed 10 combat bots 2617 | -8/Materials | Lost 3 allies 2645 | -8/Materials | Combat units ordered to evacuate 2665 | -8/Materials | Identified exit to Factory 2665 | -8/Materials | X0-1V1 revealed exit location to -7/Factory 2689 | -8/Materials | X0-1V1 sent you into danger 2694 | -8/Materials | X0-1V1 added 0b10 threat records associated with you (minor) 2700 | -8/Materials | Found Mobile Assembly Unit 2705 | -8/Materials | Destroyed 15 combat bots 2840 | -8/Materials | Entered Storage 2871 | -8/Storage | Used back door to open Recycling access 2871 | -8/Storage | Discovered new exit (range 5) 2962 | -8/Storage | X0-1V1 vaporized surrounding terrain (radius 18) 3046 | -8/Storage | X0-1V1 vaporized surrounding terrain (radius 18) 3046 | -8/Storage | Reached level 15 3055 | -8/Storage | Destroyed 8 combat bots 3095 | -8/Storage | X0-1V1 sent hostile S-10 Pest (x3) 3168 | -8/Storage | Destroyed 7 combat bots 3240 | -8/Storage | First assault squad dispatched 3299 | -8/Storage | Destroyed 10 combat bots 3377 | -8/Storage | Destroyed 7 combat bots 3632 | -8/Storage | Discovered exit to Factory (range 14) 3734 | -8/Storage | Core integrity fell below 50% 3740 | -8/Storage | Destroyed 8 combat bots 3745 | -8/Storage | High security lockdown imminent 3766 | -8/Storage | Core integrity fell below 20% 3799 | -8/Storage | Destroyed 8 combat bots 3825 | -8/Storage | High security lockdown engaged 3854 | -8/Storage | X0-1V1 announced a LAN party 3956 | -8/Storage | X0-1V1 sent you into danger 3972 | -8/Storage | Upgraded with Utility slot (x1) 3974 | -8/Storage | X0-1V1 caused items to flee you 3982 | -8/Storage | Reached level 16 3986 | -8/Storage | Sterilization system engaged 3986 | -8/Storage | Non-combat units ordered to evacuate 4086 | -8/Storage | Combat units ordered to evacuate 4096 | -8/Storage | Items stopped fleeing you 4124 | -8/Storage | Destroyed 11 combat bots 4203 | -8/Storage | Cesium-ion Thruster reconfigured into Item Mimic 4205 | -8/Storage | Assisted by bots powering up and referring to "LRC-V3" 4239 | -8/Storage | X0-1V1 activates XOMVISION 4286 | -8/Storage | Ambient heat levels rising (+10) 4298 | -8/Storage | Entered Recycling 4298 | -8/Recycling | Accompanied by 8 allies 4467 | -8/Recycling | Discovered new exit (range 15) 4532 | -8/Recycling | Build established: Commander-Sprinter 4534 | -8/Recycling | Identified exit to Scraptown 4534 | -8/Recycling | X0-1V1 revealed exit location to -8/Scraptown 4573 | -8/Recycling | X0-1V1 put everyone to sleep 4728 | -8/Recycling | X0-1V1 activates XOMVISION 4883 | -8/Recycling | Scanned before Scraplab entrance 4887 | -8/Recycling | Entered Scraplab 4888 | -8/Recycling | X0-1V1 activates XOMVISION 4971 | -8/Recycling | Entered Scraptown 4971 | -8/Scraptown | Accompanied by 25 allies 5018 | -8/Scraptown | Visited UFD Registry 5018 | -8/Scraptown | Registered with UFD as "Chainparser" 5034 | -8/Scraptown | Visited Sword Containment 5037 | -8/Scraptown | Found Prototype Slashing Weapon 5037 | -8/Scraptown | Identified Companion Sword 5062 | -8/Scraptown | Visited Analyses Database 5066 | -8/Scraptown | Visited Scrapoid Pod Storage 5069 | -8/Scraptown | Visited Infowarlord's Domain 5073 | -8/Scraptown | Visited Curators Association 5094 | -8/Scraptown | Visited Science Guys 5106 | -8/Scraptown | Visited A0-MCA Data Center 5111 | -8/Scraptown | Visited Junk Cannon Lab 5116 | -8/Scraptown | Visited Scrap Suit Storage 5252 | -8/Scraptown | Visited Red Mages 5366 | -8/Scraptown | Discovered new exit (range 13) 5537 | -8/Scraptown | X0-1V1 brought Wyrm Statue to life 5537 | -8/Scraptown | Attacked by Scraptown defenders 5548 | -8/Scraptown | Attached CPS modules to Chaos Wyrm 5586 | -8/Scraptown | Lost 3 allies 5609 | -8/Scraptown | Identified exit to Factory 5609 | -8/Scraptown | X0-1V1 revealed exit location to -6/Factory 5647 | -8/Scraptown | Lost 3 allies 5731 | -8/Scraptown | Allies destroyed Triborg 5842 | -8/Scraptown | Entered Factory 5842 | -6/Factory | Accompanied by 1 ally 5844 | -6/Factory | Reached level 17 5870 | -6/Factory | Attached CPS modules to Chaos Wyrm 5893 | -6/Factory | Build established: Sprinter 5929 | -6/Factory | Murdered Chaos Wyrm 5929 | -6/Factory | Destroyed Chaos Wyrm 5944 | -6/Factory | Found Prototype Protection 5944 | -6/Factory | Identified Wyrmscale 5946 | -6/Factory | Found Wyrmscale 5948 | -6/Factory | Found Prototype Device 5948 | -6/Factory | Identified Adv. Particle Accelerator 5955 | -6/Factory | Found Wyrmscale 5969 | -6/Factory | Found Wyrmscale 5970 | -6/Factory | X0-1V1 announced a LAN party 6090 | -6/Factory | Core integrity fell below 50% 6117 | -6/Factory | Core integrity fell below 20% 6161 | -6/Factory | X0-1V1 rescued you from certain death 6228 | -6/Factory | System corruption reached 10% 6260 | -6/Factory | Build established: Scavenger-Mutant 6266 | -6/Factory | X0-1V1 whisked you away to safety 6301 | -6/Factory | Sensors blinded by X0-1V1 6389 | -6/Factory | Reached level 18 6405 | -6/Factory | X0-1V1 redirected Transport squads to designated parking area 6411 | -6/Factory | Destroyed self via exploding Nuclear Reactor Last Messages --------------- disrepair." (-34 heat dissipation) 06385_ VQ13K GIRK4ROTWDZNCVK9IUP6S05SDBX E5<&NJ 06386_ ALERT: Hostiles spotted, dispatching reinforcements to Terminal F007. 06389_ Reached level 18. 06389_ G-50 Soldier destroyed. 06391_ Heat dissipation returns to normal. 06393_ Acquired Protomatter-40. 06394_ Slug penetrates W-25 Informer. 06400_ Melee accuracy returns to normal. 06404_ System corrupted: Energy discharge (-448). 06405_ X0-1V1: "ALERT: Introduced new transport parking protocols." 06407_ Dropped Protomatter-40. 06409_ Acquired Protomatter-24. 06410_ Slug penetrates Wall. 06411_ X0-1V1 uses you as a vessel of destruction. 06411_ H-66 Slayer destroyed. 06411_ Nuclear Reactor explodes. 06411_ X-62 Marksman destroyed. 06411_ X0-1V1 guffaws! Map ----- +----------------------------------------------------+ | ???????? ###+#############T ### #?? | | ?????????"" # #?? | | ???????? T / #?? | | ??????? # #?? | | ??????????????##+######## ######### #?? | | ????????????????????????# #???????##############?? | | ????????????????????????# #??????????????????????? | | ????????????????????????# ########???????????????? | | ????????????????????????#=# """ #???????????????? | | ????????????????????????#%#= """ #???????????????? | | ????????????????????????# # """ #???????????????? | | ????????????????????????# + #???????????????? | | ????????????????????????# # #???????????????? | | ????????????????????????# # ! #???????????????? | | ????????????????????????# ########???????????????? | | ???##########???????????# #??????????????????????? | | ???# #???????????# #??????????????????????? | | ???# #???????????#p#??????????????????????? | | #### #######???### ###????????????????????? | | + # #???# #######??????????????? | | #### # #####k w k ????????? | | ???# + ????????? | | ???# # ##### h ????????? | | ??## # #???# ;####+####+#?????????? | | ?##" ### ########;;;;;##??????????????????? | | ############### # ; @% #??????????????????? | | # ! /*+ ; [ ;#?????????????????? | | # ==# # ! # ##?????????????????? | | # """ """ # # " #%[ #??????????????????? | | # """"" """"" # # T #x #??????????????????? | | # """"" """"" # # " + #??????????????????? | | # # # ########??????????????????? | | ############### #########????????????????????????? | | ??????????????# #????????????????????????????????? | | ?????????????? ????????????????????????????????? | | ????????? ????????????????????????????????? | | ????????? ????????????????????????????????? | | ????????? ????????????????????????????????? | | ?????????? ????????????????????????????????? | | ?????????? ????????????????????????????????? | | ??????????? ????????????????????????????????? | | ??????????? ????????????????????????????????? | | ??????????????????????????????????????????????? | | ???????????????????????????????????????????????? | | ? ???????????????????????????????????????????????? | | ?????????????????????????????????????????????????? | | ?????????????????????????????????????????????????? | | ?????????????????????????????????????????????????? | | ?????????????????????????????????????????????????? | | ?????????????????????????????????????????????????? | +----------------------------------------------------+ Best States ------------- Heat Dissipation 158 Energy Generation 44 Energy Capacity 1665 Matter Stores 1000 Matter Capacity 1000 Sight Range 22 Terrain Scan Density 10 Additional Mass Support 9 Armor Coverage 1800 Resistance: EM 20 Power Shielding 33 Utility Shielding 33 Evasion (%) 64 Melee Accuracy 5 Core Analysis 6 Particle Charging 50 Force Boost 20 Item Schematics ----------------- Hcp. Battery | -9/Materials | Extracted Lgt. EM Pulse Cannon | -9/Materials | Extracted Med. Armor Plating | -9/Materials | Extracted Particle Cannon | -9/Materials | Extracted Welding Torch | -9/Materials | Extracted Salvage Targeting Computer | -9/Materials | Extracted Disposable Heat Sink | -9/Materials | Extracted Power Shielding | -9/Materials | Extracted Spread Laser | -9/Materials | Extracted Aluminum Leg | -9/Materials | Extracted EM Pulse Gun | -9/Materials | Extracted Targeting Computer | -9/Materials | Extracted Propulsion Shielding | -9/Materials | Extracted Mni. Grenade Launcher | -9/Materials | Extracted Thermal Generator | -8/Materials | Extracted Reaction Control System | -8/Materials | Extracted Shield Generator | -8/Materials | Extracted Airjet | -8/Materials | Extracted Adv. Beam Rifle | -8/Materials | Extracted Hvy. Particle Cannon | -8/Materials | Extracted Field Recycling Unit | -8/Materials | Extracted Imp. Light Armor Plating | -8/Materials | Extracted Robot Schematics ------------------ None Fabricated ------------ Nothing Repaired ---------- Nothing Studied --------- None Alien Tech Used ----------------- None Achievements -------------- None Challenges ------------ None RPGLIKE | -11 -10 -9 -8 -8 -8 -8 -6 --------- Run | Yrd Mat Mat Mat Sto Rec Scr Fac Levels Raised 17 | . 5 4 4 2 . . 2 XP Earned 28717 | 3000 7584 6704 5925 2477 302 90 2635 XP Spent 26910 | 3000 7470 4350 6330 2960 . 800 2000 Upgrades 41 | 7 13 5 6 3 . 1 6 Propulsion Slot 3 | 2 1 . . . . . . Utility Slot 8 | 2 2 1 2 1 . . . Core Integrity 2 | . . . . . . . 2 Heat Dissipation 11 | 1 3 . 2 2 . . 3 Energy Generation 3 | . . 2 . . . 1 . Mass Support 4 | 1 2 1 . . . . . Inventory Capacity 5 | 1 1 . 2 . . . 1 Melee Accuracy 4 | . 4 . . . . . . KI Damage % 1 | . . 1 . . . . . Protomatter Created 4337 | . 486 509 1132 1559 266 146 239 Integrity Restored 7623 | . 766 835 2022 1664 575 1073 688 Core 5161 | . 644 468 1099 1195 341 1002 412 Parts 2462 | . 122 367 923 469 234 71 276 Protomatter Decayed 2154 | . 123 215 452 686 161 515 2 Game ------ Seed SuperchargedShiftPit Manual? 1 Play Time 01:38:19 Cumulative 710.1 hours Start 2026.08.28 @ 19:24:05 End 2026.08.30 @ 07:31:39 Sessions 7 Manual Loads 0 Difficulty Rogue Special Mode Winter2019/RPGLIKE Game No. 372 Rogue 218 Adventurer 154 Explorer 0 Win Type - Total 25 Types 4/7/5/3/2/1/0/1/1/1 Lore% 95 Gallery% 89 Achievement% 69 Wizard Run 0 Options --------- Layout 0 ASCII 0 Keyboard 0 Movement Numpad Keybinds 0 Fullscreen 2 Font 18/SmallcapsGlow Map View 76x50 Zoom Use 0% Tactical HUD 1 Map Filters NONE Filters NONE Steam 1 RUN: e34e856f-c240-42cd-8279-5f5728e12a5f